Cogmind - Beta 15 @@@ ROGUE MODE // 2025.08.06 @ 18:08:56 Player: Skysub Result: Destroyed by S-10 Pest with Light Assault Rifle Performance ------------- Evolutions (2) 1000 Regions Visited (3) 600 Robots Destroyed (5) 25 Value Destroyed (50) 50 Prototype IDs (0) 0 Alien Tech Used (0) 0 Bonus (470) 470 TOTAL SCORE: 2145 Bonus ------- Pacifist 470 Cogmind --------- Core Integrity 0/550 Matter 248/300 Energy 100/100 System Corruption 0% Temperature Cool (0) Movement Core (50) Location -8/Materials Parts ------- > --- POWER (1) -------- (None) > --- PROPULSION (4) --- (None) > --- UTILITY (4) ------ (None) > --- WEAPON (2) ------- Light Assault Rifle > --- INVENTORY (5) ---- Light Ion Engine Flight Unit Flight Unit Small Storage Unit Hardened Medium Armor Plating Peak State ------------ > --- POWER ------------ (None) > --- PROPULSION ------- (None) > --- UTILITY ---------- (None) > --- WEAPON ----------- Hammer > --- INVENTORY -------- Light Ion Engine Small Storage Unit Hardened Medium Armor Plating [Rating: 1] Favorites ----------- Power None Propulsion None Utility None Weapon Hammer Ballistic Gun Light Assault Rifle Impact Weapon Hammer Build | -11 -10 -9 -8 ------- Run | Yrd Mat Mat Mat Slots Evolved 4 | . . 2 2 Power . | . . . . Propulsion 2 | . . 1 1 Utility 2 | . . 1 1 Weapon . | . . . . Parts Attached 3 | . . . 3 Power . | . . . . Engine . | . . . . Core . | . . . . Reactor . | . . . . Propulsion . | . . . . Treads . | . . . . Leg . | . . . . Wheel . | . . . . Hover . | . . . . Flight . | . . . . Utility . | . . . . Device . | . . . . Storage . | . . . . Processor . | . . . . Hackware . | . . . . Protection . | . . . . Artifact . | . . . . Weapon 3 | . . . 3 Energy Gun . | . . . . Energy Cannon . | . . . . Ballistic Gun 2 | . . . 2 Ballistic Cannon . | . . . . Launcher . | . . . . Special Weapon . | . . . . Impact Weapon 1 | . . . 1 Slashing Weapon . | . . . . Piercing Weapon . | . . . . Special Melee Weapon . | . . . . Unidentified Prototypes . | . . . . Parts Lost 2 | . . . 2 Power . | . . . . Propulsion . | . . . . Utility . | . . . . Weapon 2 | . . . 2 Highest Loss Streak 2 | . . . 2 To Critical Strikes . | . . . . Average Backups 2 | 1 2 3 3 Power . | . 1 1 1 Propulsion . | . . . . Utility 1 | . 1 1 1 Weapon . | . . 1 . Tool/Special . | . . . . Unused Backups 3 | . . . 3 Power 1 | . . . 1 Propulsion . | . . . . Utility 2 | . . . 2 Weapon . | . . . . Tool/Special . | . . . . Average Slot Usage (%) 2 | . . . 5 Impact Weapon 1 | . . . 3 Peak Build Rating 1 | . . . 1 Average Rating . | . . . . On Entrance . | . . . . Naked Turns 118 | . 48 44 26 Heaviest Build 2 | . . . 2 Greatest Support 3 | 3 3 3 3 Greatest Overweight (x) . | . . . . Average Overweight (x) . | . . . . Largest Inventory Capacity 5 | 5 5 5 5 Average Capacity 5 | 5 5 5 5 Most Carried 5 | 2 3 3 5 Average Carried 2 | 1 2 3 3 Final Capacity 5 | 5 5 5 5 Final Carried 5 | 2 3 3 5 Class Distribution -------------------- 100% | Mutant Dominant Class ---------------- Mutant | -10/Materials Mutant | -9/Materials Mutant | -8/Materials Resources | -11 -10 -9 -8 ----------- Run | Yrd Mat Mat Mat Matter Collected 173 | 157 . . 16 Remotely . | . . . . Salvage Created 74 | . . . 74 Parts 6 | . . . 6 Haulers Intercepted . | . . . . Recyclers Shooed . | . . . . Parts Field Recycled . | . . . . Retrieved Matter . | . . . . Parts Self-Destructed . | . . . . Prevented . | . . . . Kills | -11 -10 -9 -8 ------- Run | Yrd Mat Mat Mat Combat Hostiles Destroyed 5 | . . . 5 Melee 3 | . . . 3 Guns 2 | . . . 2 Classes Destroyed 1 | . . . 1 Swarmer 5 | . . . 5 Best Kill Streak 5 | . . . 5 Combat Bots Only 5 | . . . 5 Max Kills in Single Turn 1 | . . . 1 Gunslinging . | . . . . Exploded . | . . . . Melee 1 | . . . 1 Uniques/NPCs Destroyed . | . . . . Combat | -11 -10 -9 -8 -------- Run | Yrd Mat Mat Mat Hostile Shots Fired 161 | . 21 18 122 Missed 45 | . 9 5 31 Hits 116 | . 12 13 91 Projectile 116 | . 12 13 91 Critical Strikes 1 | . . . 1 Damage Taken 1021 | . 103 177 741 Core 832 | . 103 177 552 Absorbed by Shields . | . . . . Core Remaining (%) 71 | 100 58 55 . Volleys Fired 11 | . . . 11 Largest 1 | . . . 1 Hottest 20 | . . . 20 Shots Fired 11 | . . . 11 Gun 11 | . . . 11 Cannon . | . . . . Launcher . | . . . . Special . | . . . . Kinetic 11 | . . . 11 Thermal . | . . . . Explosive . | . . . . Electromagnetic . | . . . . Robot Hit Streak 2 | . . . 2 Robot Miss Streak 3 | . . . 3 Penetration Max . | . . . . Secondary Targets . | . . . . Shots Hit Robots 11 | . . . 11 Core Hits 7 | . . . 7 Critical Kills 1 | . . . 1 Critical Parts Destroyed 2 | . . . 2 Critical Strikes 3 | . . . 3 Smash 3 | . . . 3 Melee Attacks 8 | . . . 8 Impact 8 | . . . 8 Slashing . | . . . . Piercing . | . . . . Sneak Attacks . | . . . . Combat Hostiles . | . . . . Follow-up Attacks . | . . . . Damage Inflicted 230 | . 10 5 215 Guns 70 | . . . 70 Cannons . | . . . . Explosions . | . . . . Melee 145 | . . . 145 Ramming 15 | . 10 5 . Kinetic 70 | . . . 70 Thermal . | . . . . Explosive . | . . . . Electromagnetic . | . . . . Impact 145 | . . . 145 Slashing . | . . . . Piercing . | . . . . Highest Corruption . | . . . . Average Corruption . | . . . . Corruption Purged . | . . . . Corruption Blocked . | . . . . Overload Shots . | . . . . Overflow Damage 53 | . . . 53 Projectiles . | . . . . Explosions . | . . . . Melee 53 | . . . 53 Knockbacks . | . . . . Impact . | . . . . Kinetic . | . . . . Secondary . | . . . . Self-Inflicted Damage 7 | . 5 2 . Shots . | . . . . Rammed 2 | . 1 1 . Targets Rammed 2 | . 1 1 . Kicked . | . . . . Crushed . | . . . . Highest Temperature . | . . . . Average Temperature . | . . . . Received Heat Transfer 69 | . 18 51 . Siege Activations . | . . . . Martial Activations . | . . . . Shielding Activations . | . . . . Robots Disrupted . | . . . . Combat Hostiles . | . . . . Robots Corrupted . | . . . . Combat Hostiles . | . . . . Parts Fried 1 | . . . 1 Impact Corruptions 4 | . . . 4 Robots Melted . | . . . . Combat Hostiles . | . . . . Parts Melted . | . . . . Heat Transferred . | . . . . Parts Sabotaged . | . . . . Parts Stolen . | . . . . Parts Stripped . | . . . . Power Chain Reactions . | . . . . Alert | -11 -10 -9 -8 ------- Run | Yrd Mat Mat Mat Maximum Alert Level . | . . . . Low Security (%) 100 | 100 100 100 100 Level 1 . | . . . . Level 2 . | . . . . Level 3 . | . . . . Level 4 . | . . . . Level 5 . | . . . . High Security . | . . . . Max Security . | . . . . Peak Influence 90 | . . 30 90 Initial 8 | . . . 8 Average 16 | . . 3 39 Influence Increases 150 | . . 30 120 Destroy 0b10 Robot/C 100 | . . . 100 Destroy Leader 20 | . . . 20 Lose Combat Pursuer 30 | . . 30 . Influence Decreases 70 | . . 10 60 Entered New Map 12 | . . . 12 Time Decay 38 | . . 10 28 Lost Part 20 | . . . 20 Squads Dispatched 2 | . 1 1 . Investigation 1 | . . 1 . Extermination . | . . . . Reinforcement 1 | . 1 . . Assault . | . . . . Garrison . | . . . . Intercept . | . . . . Searches Triggered . | . . . . Construction Impeded . | . . . . Haulers Reinforced . | . . . . Active Scanning Responses . | . . . . Cargo Convoy Interrupts . | . . . . Stealth | -11 -10 -9 -8 --------- Run | Yrd Mat Mat Mat Distress Signals . | . . . . Communications Jammed . | . . . . Distress Signals . | . . . . Times Spotted 22 | . 9 5 8 Peak Tracking Total 8 | . 8 8 7 Tactical Retreats 1 | . . 1 . Traps | -11 -10 -9 -8 ------- Run | Yrd Mat Mat Mat Traps Triggered . | . . . . Indirectly . | . . . . Trap Hack Attempts . | . . . . Triggered . | . . . . Disarmed . | . . . . Reprogrammed . | . . . . Reused . | . . . . Traps Extracted . | . . . . Installed . | . . . . Triggered . | . . . . Machines | -11 -10 -9 -8 ---------- Run | Yrd Mat Mat Mat Machines Disabled . | . . . . Max in Single Turn . | . . . . Machines Repaired . | . . . . Machines Dismantled . | . . . . Machines Sabotaged . | . . . . Overloaded Fab Kills . | . . . . Hacking | -11 -10 -9 -8 --------- Run | Yrd Mat Mat Mat Machines Accessed 1 | . . 1 . Terminals 1 | . . 1 . Fabricators . | . . . . Repair Stations . | . . . . Recycling Units . | . . . . Scanalyzers . | . . . . Garrison Access . | . . . . Total Hacks 3 | . . 3 . Successful . | . . . . Failed 3 | . . 3 . Catastrophic . | . . . . Database Lockouts . | . . . . Manual 3 | . . 3 . Terminals 3 | . . 3 . Fabricators . | . . . . Repair Stations . | . . . . Recycling Units . | . . . . Scanalyzers . | . . . . Garrison Access . | . . . . Terminal Hacks . | . . . . Fabricator Hacks . | . . . . Repair Station Hacks . | . . . . Recycling Unit Hacks . | . . . . Scanalyzer . | . . . . Garrison Access Hacks . | . . . . Unauthorized Hacks . | . . . . Terminals . | . . . . Fabricators . | . . . . Repair Stations . | . . . . Recycling Units . | . . . . Scanalyzers . | . . . . Garrison Access . | . . . . Data Cores Recovered . | . . . . Used . | . . . . Hacking Detections 1 | . . 1 . Full Trace Events 1 | . . 1 . Feedback Events . | . . . . Feedback Blocked . | . . . . Robot Schematics Acquired . | . . . . Robots Built . | . . . . Authchips . | . . . . Time . | . . . . Total Robot Build Rating . | . . . . Part Schematics Acquired . | . . . . Parts Built . | . . . . Authchips . | . . . . Time . | . . . . Total Part Build Rating . | . . . . Parts Repaired . | . . . . Time . | . . . . Parts Recycled . | . . . . Recycled Matter . | . . . . Retrieved Matter . | . . . . Retrieved Components . | . . . . Parts Scanalyzed . | . . . . Part Schematics Acquired . | . . . . Parts Damaged . | . . . . Bothacking | -11 -10 -9 -8 ------------ Run | Yrd Mat Mat Mat Used RIF Installer . | . . . . Robots Hacked . | . . . . Non-combat . | . . . . Combat . | . . . . Robot Hacks Applied . | . . . . Relay Couplers Released . | . . . . Fabnet Peak Effective % . | . . . . Robots Rewired . | . . . . Allies Hacked . | . . . . Hacks Repelled . | . . . . Allies | -11 -10 -9 -8 -------- Run | Yrd Mat Mat Mat Total Allies . | . . . . Largest Group . | . . . . Highest-Rated Group . | . . . . Highest-Rated Ally . | . . . . Total Orders . | . . . . Ally Attacks . | . . . . Total Damage . | . . . . Kills . | . . . . Allies Corrupted . | . . . . Allies Melted . | . . . . Intel | -11 -10 -9 -8 ------- Run | Yrd Mat Mat Mat Active Infowar (turns) . | . . . . Robot Analysis Total . | . . . . Derelict Logs Recovered . | . . . . Drone Launches . | . . . . Drone Recoveries . | . . . . Exploration | -11 -10 -9 -8 ------------- Run | Yrd Mat Mat Mat Turns Passed 175 | 13 48 44 70 Spaces Moved 242 | 21 92 85 44 Core 242 | 21 92 85 44 Treads . | . . . . Legs . | . . . . Wheels . | . . . . Hover . | . . . . Flight . | . . . . Fastest Speed 50 | 50 50 50 50 Average Speed 50 | 50 50 50 50 Slowest Speed 50 | 50 50 50 50 Overloaded Moves . | . . . . Propulsion Burnouts . | . . . . Robots Hopped . | . . . . Potential Cave-ins . | . . . . Cave-ins Triggered . | . . . . Exploration Rate (%) 16 | 3 32 18 11 Regions Visited 3 Branch Regions . Pre-discovered Areas . | . . . . Known Exits Taken . | . . . . Unknown Exits Taken 3 | 1 1 1 . Scrap Searched . | . . . . Spaces Dug . | . . . . Terrain Destroyed . | . . . . Melee . | . . . . Projectile . | . . . . AOE . | . . . . Terrain Rammed . | . . . . Walls Destroyed . | . . . . Machines Disabled . | . . . . Actions | -11 -10 -9 -8 --------- Run | Yrd Mat Mat Mat Total 269 | 22 93 85 69 Wait . | . . . . Move 239 | 20 91 84 44 Hop . | . . . . Pick Up 6 | 2 1 . 3 Fast Attach 2 | . . . 2 Attach 1 | . . . 1 Detach . | . . . . Swap . | . . . . Drop . | . . . . Fire 11 | . . . 11 Melee 8 | . . . 8 Ram 2 | . 1 1 . Kick . | . . . . Crush . | . . . . Escape Stasis . | . . . . Rewire . | . . . . Trap . | . . . . Miscellaneous . | . . . . Route ------- -11/Scrapyard -10/Materials -9/Materials -8/Materials History --------- Turn | Location | Event 7 | -11/Scrapyard | Discovered new exit (range 15) 14 | -11/Scrapyard | Entered Materials 57 | -10/Materials | Discovered new exit (range 8) 62 | -10/Materials | Entered another Materials area 62 | -9/Materials | Evolved 2 slots: Propulsion x1, Utility x1 97 | -9/Materials | Discovered new exit (range 16) 106 | -9/Materials | Entered another Materials area 106 | -8/Materials | Evolved 2 slots: Propulsion x1, Utility x1 141 | -8/Materials | Core integrity fell below 50% 158 | -8/Materials | Core integrity fell below 20% 176 | -8/Materials | Destroyed by S-10 Pest with Light Assault Rifle Last Messages --------------- 00147_ S-10 Pest suffers critical hit (Smash). 00147_ S-10 Pest destroyed. 00147_ K-01 Serf collects debris. 00150_ Acquired Flight Unit. 00150_ K-01 Serf collects debris. 00150_ Hammer destroyed. 00152_ Acquired Lgt. Assault Rifle. 00152_ M-13 Machinist repairs S-10 Pest. 00154_ M-13 Machinist repairs S-10 Pest Lgt. Ion Engine. 00155_ K-01 Serf collects debris. 00160_ S-10 Pest destroyed. 00161_ K-01 Serf collects debris. 00164_ S-10 Pest destroyed. 00164_ K-01 Serf collects debris. 00164_ Lgt. Assault Rifle destroyed. 00167_ Acquired Flight Unit. 00168_ K-01 Serf collects debris. 00168_ M-13 Machinist repairs S-10 Pest. 00169_ Acquired Lgt. Assault Rifle. 00171_ K-01 Serf collects debris. Map ----- +----------------------------------------------------+ | ?????????????????????????????????????????????????? | | ?????????????????????????????????????????????????? | | ?????????????????????????????????????????????????? | | ?????????????????????????????????????????????????? | | ?????????????????????????????????????????????????? | | ?????????????????????????????????????????????????? | | ?????????????????????????????????????????????????? | | ?????????????????????????????????????????????????? | | ?????????????????????????????????????????????????? | | ?????????????????????????????????????????????????? | | ?????????????????????????????????????????????????? | | ?????????????????????????????????????????????????? | | ?????????????????????????????????????????????????? | | ???????????????##+####???????????????????????????? | | ??????????????# ?????????####??????????????? | | ??????????????# ? ###### ???????????????? | | ??????????????# +??????????????? | | ??????????????# #????????####### | | ??????????????# """ """ #?##??????# | | ??????????? ??#^ ^ """ """ # ???????# | | ???????????" # """ """ # !???##### | | ???????????? + + ????# # | | ??????????????# #?????# " + | | ??????????????# m """ #?????# # | | ??????????????# s[% """ #?????## ## | | ??????????????# ! @* """ #??????# #??? | | ??????????????# !!s% % !######## ######+# | | ??????????????# ### k t | | ????????????????????# !!]% | | ????????????????????# !!] | | ????????????????????# !! ##### | | ????????????????????# #???? | | ????????????????????# #???? | | ????????????????????##########################???? | | ?????????????????????????????????????????????????? | | | | | | | | | | | | | | | | | | | | | | | | | | | | | | | +----------------------------------------------------+ Best States ------------- Heat Dissipation 31 Energy Generation 5 Energy Capacity 100 Matter Stores 269 Matter Capacity 300 Sight Range 16 Terrain Scan Density 10 Evasion (%) 50 Item Schematics ----------------- None Robot Schematics ------------------ None Fabricated ------------ Nothing Repaired ---------- Nothing Alien Tech Used ----------------- None Achievements -------------- None Challenges ------------ None Game ------ Seed ServoPortableDissipator Manual? 0 Play Time 00:03:12 Cumulative 234.7 hours Start 2025.08.06 @ 18:06:37 End 2025.08.06 @ 18:08:56 Sessions 1 Manual Loads 0 Difficulty Rogue Special Mode None Game No. 245 Rogue 245 Adventurer 0 Explorer 0 Win Type - Total 9 Types 4/0/3/1/0/0/0/0/0/1 Lore% 74 Gallery% 70 Achievement% 64 Wizard Run 0 Options --------- Layout 1 ASCII 0 Keyboard 1 Movement Numpad Keybinds 0 Fullscreen 1 Font 32/SmallcapsGlow Map View 77x35 Zoom Use 0% Tactical HUD 1 Map Filters NONE Filters NONE Steam 1 RUN: 36ece60c-d5e1-4ad1-b9f6-c4b18b714e3c